Workbook

Sheet Steuerung
B2: Vergleich Leasing - Kreditkauf
B5: Investition
B6: Anschaffungswert | F6: 25000 | G6: € | I6: Die Abschreibung erfolgt linear.
B7: Nutzungsdauer in Jahren | F7: 5
B9: Leasingangebot | C9: monatliche Raten | I9: Tragen Sie die Eingabewerte in die gelben Felder ein. Bei unterschiedliche Leasingraten im Zeitablauf können Sie zunächst die Option "veränderliche Raten" aktivieren und unterschiedlichen Monatsraten für jedes Jahr eintragen.
B10: 2 | G10: €
E12: 1. Jahr | F12: 300 | G12: €
E13: 2. Jahr | F13: 300 | G13: €
E14: 3. Jahr | F14: 300 | G14: €
E15: 4. Jahr | F15: 500 | G15: €
E16: 5. Jahr | F16: 500 | G16: €
E17: 6. Jahr | G17: €
E18: 7. Jahr | G18: €
E19: 8. Jahr | G19: €
E20: 9. Jahr | G20: €
E21: 10. Jahr | G21: €
B23: Kauf | C23: Kreditfinanzierung | I23: Der Kreditbedarf wird automatisch berechnet. Eigene Mittel vermindern, eine Kreditauszahlung unter 100% erhöht den Kreditbedarf. Die Tilgung erfolgt in Form eines Abzahlungsdarlehens.
C24: eigene Mittel | F24: 5000 | G24: €
C25: Kreditauszahlung in % | F25: 98 | G25: %
C26: Kreditbedarf | F26: =ROUND(((F6-F24)*100)/F25,2) -> 20408.16 | G26: €
C27: Zinssatz | F27: 2.5 | G27: %
C28: Kreditlaufzeit in Jahren | F28: 5

Sheet Auswertung
B2: Ergebnisauswertung
C4: Kauf | I4: Leasing | J4: Differenz Leasing-Kauf | L4: Leasing ist günstiger
B5: Jahr | C5: eigene Mittel | D5: Tilgung | E5: Zinsen | F5: Auszahlungen | G5: Abschreibung | H5: Aufwand | I5: Jahresrate | J5: Auszahlungen | K5: Aufwand | L5: Kreditkauf ist günstiger | M5: Restschuld
B6: 1 | C6: =Steuerung!F24 -> 5000 | D6: =IF(M6>=0.01,Steuerung!$F$26/Steuerung!$F$28,0) -> 4081.632 | E6: =IF(D6=0,0,Steuerung!$F$26*Steuerung!$F$27/100) -> 510.204 | F6: =IF(D6=0,0,SUM(C6:E6)) -> 9591.836 | G6: =Steuerung!$F$6/Steuerung!$F$7 -> 5000 | H6: =IF(G6=0,0,E6+G6) -> 5510.204 | I6: =IF(Steuerung!$F$7>=B6,IF(Steuerung!$B$10=1,Steuerung!$F$10*12,Steuerung!F12*12),0) -> 3600 | J6: =I6-F6 -> -5991.836 | K6: =I6-H6 -> -1910.204 | L6: =IF(K16>=0,CONCATENATE("Der Aufwand beim Kreditkauf ist um ",K16," Euro niedriger als beim Leasing."),CONCATENATE("Der Aufwand beim Leasing ist um ",K16*-1, " Euro niedriger als beim Kreditkauf.")) -> Der Aufwand beim Leasing ist um 3730,61 Euro niedriger als beim Kreditkauf. | M6: =Steuerung!F26 -> 20408.16
B7: 2 | D7: =IF(M7>=0.01,Steuerung!$F$26/Steuerung!$F$28,0) -> 4081.632 | E7: =IF(D7=0,0,(Steuerung!$F$26-D6)*Steuerung!$F$27/100) -> 408.1632 | F7: =IF(D7=0,0,SUM(C7:E7)) -> 4489.7952 | G7: =IF(B7*Steuerung!$F$6/Steuerung!$F$7>Steuerung!$F$6,0,Steuerung!$F$6/Steuerung!$F$7) -> 5000 | H7: =IF(G7=0,0,E7+G7) -> 5408.1632 | I7: =IF(Steuerung!$F$7>=B7,IF(Steuerung!$B$10=1,Steuerung!$F$10*12,Steuerung!F13*12),0) -> 3600 | J7: =I7-F7 -> -889.7952 | K7: =I7-H7 -> -1808.1632 | M7: =M6-D6 -> 16326.528
B8: 3 | D8: =IF(M8>=0.01,Steuerung!$F$26/Steuerung!$F$28,0) -> 4081.632 | E8: =IF(D8=0,0,(Steuerung!$F$26-SUM(D6:D7))*Steuerung!$F$27/100) -> 306.1224 | F8: 4387.7544 | G8: =IF(B8*Steuerung!$F$6/Steuerung!$F$7>Steuerung!$F$6,0,Steuerung!$F$6/Steuerung!$F$7) -> 5000 | H8: 5306.1224 | I8: =IF(Steuerung!$F$7>=B8,IF(Steuerung!$B$10=1,Steuerung!$F$10*12,Steuerung!F14*12),0) -> 3600 | J8: -787.7544 | K8: -1706.1224 | M8: =M7-D7 -> 12244.896
B9: 4 | D9: =IF(M9>=0.01,Steuerung!$F$26/Steuerung!$F$28,0) -> 4081.632 | E9: =IF(D9=0,0,(Steuerung!$F$26-SUM(D6:D8))*Steuerung!$F$27/100) -> 204.0816 | F9: 4285.7136 | G9: =IF(B9*Steuerung!$F$6/Steuerung!$F$7>Steuerung!$F$6,0,Steuerung!$F$6/Steuerung!$F$7) -> 5000 | H9: 5204.0816 | I9: =IF(Steuerung!$F$7>=B9,IF(Steuerung!$B$10=1,Steuerung!$F$10*12,Steuerung!F15*12),0) -> 6000 | J9: 1714.2864 | K9: 795.9184 | L9: =IF(J16>=0,CONCATENATE("Die Liquidität wird beim Kreditkauf um ",J16," Euro weniger belastet als beim Leasing."),CONCATENATE("die Liquidität wird beim Leasing um ",J16*-1," Euro weniger belastet als beim Kreditkauf.")) -> die Liquidität wird beim Leasing um 4138,77 Euro weniger belastet als beim Kreditkauf. | M9: 8163.264
B10: 5 | D10: =IF(M10>=0.01,Steuerung!$F$26/Steuerung!$F$28,0) -> 4081.632 | E10: =IF(D10=0,0,(Steuerung!$F$26-SUM(D6:D9))*Steuerung!$F$27/100) -> 102.0408 | F10: 4183.6728 | G10: =IF(B10*Steuerung!$F$6/Steuerung!$F$7>Steuerung!$F$6,0,Steuerung!$F$6/Steuerung!$F$7) -> 5000 | H10: 5102.0408 | I10: =IF(Steuerung!$F$7>=B10,IF(Steuerung!$B$10=1,Steuerung!$F$10*12,Steuerung!F16*12),0) -> 6000 | J10: 1816.3272 | K10: 897.9592 | M10: 4081.632
B11: 6 | D11: =IF(M11>=0.01,Steuerung!$F$26/Steuerung!$F$28,0) -> 0 | E11: =IF(D11=0,0,(Steuerung!$F$26-SUM(D6:D10))*Steuerung!$F$27/100) -> 0 | F11: 0 | G11: =IF(B11*Steuerung!$F$6/Steuerung!$F$7>Steuerung!$F$6,0,Steuerung!$F$6/Steuerung!$F$7) -> 0 | H11: 0 | I11: =IF(Steuerung!$F$7>=B11,IF(Steuerung!$B$10=1,Steuerung!$F$10*12,Steuerung!F17*12),0) -> 0 | J11: 0 | K11: 0 | M11: 0
B12: 7 | D12: =IF(M12>=0.01,Steuerung!$F$26/Steuerung!$F$28,0) -> 0 | E12: =IF(D12=0,0,(Steuerung!$F$26-SUM(D6:D11))*Steuerung!$F$27/100) -> 0 | F12: 0 | G12: =IF(B12*Steuerung!$F$6/Steuerung!$F$7>Steuerung!$F$6,0,Steuerung!$F$6/Steuerung!$F$7) -> 0 | H12: 0 | I12: =IF(Steuerung!$F$7>=B12,IF(Steuerung!$B$10=1,Steuerung!$F$10*12,Steuerung!F18*12),0) -> 0 | J12: 0 | K12: 0 | M12: 0
B13: 8 | D13: =IF(M13>=0.01,Steuerung!$F$26/Steuerung!$F$28,0) -> 0 | E13: =IF(D13=0,0,(Steuerung!$F$26-SUM(D6:D12))*Steuerung!$F$27/100) -> 0 | F13: 0 | G13: =IF(B13*Steuerung!$F$6/Steuerung!$F$7>Steuerung!$F$6,0,Steuerung!$F$6/Steuerung!$F$7) -> 0 | H13: 0 | I13: =IF(Steuerung!$F$7>=B13,IF(Steuerung!$B$10=1,Steuerung!$F$10*12,Steuerung!F19*12),0) -> 0 | J13: 0 | K13: 0 | M13: 0
B14: 9 | D14: =IF(M14>=0.01,Steuerung!$F$26/Steuerung!$F$28,0) -> 0 | E14: =IF(D14=0,0,(Steuerung!$F$26-SUM(D6:D13))*Steuerung!$F$27/100) -> 0 | F14: 0 | G14: =IF(B14*Steuerung!$F$6/Steuerung!$F$7>Steuerung!$F$6,0,Steuerung!$F$6/Steuerung!$F$7) -> 0 | H14: 0 | I14: =IF(Steuerung!$F$7>=B14,IF(Steuerung!$B$10=1,Steuerung!$F$10*12,Steuerung!F20*12),0) -> 0 | J14: 0 | K14: 0 | M14: 0
B15: 10 | D15: =IF(M15>=0.01,Steuerung!$F$26/Steuerung!$F$28,0) -> 0 | E15: =IF(D15=0,0,(Steuerung!$F$26-SUM(D6:D14))*Steuerung!$F$27/100) -> 0 | F15: 0 | G15: =IF(B15*Steuerung!$F$6/Steuerung!$F$7>Steuerung!$F$6,0,Steuerung!$F$6/Steuerung!$F$7) -> 0 | H15: 0 | I15: =IF(Steuerung!$F$7>=B15,IF(Steuerung!$B$10=1,Steuerung!$F$10*12,Steuerung!F21*12),0) -> 0 | J15: 0 | K15: 0 | M15: 0
B16: Summe | C16: =SUM(C6:C15) -> 5000 | D16: =SUM(D6:D15) -> 20408.16 | E16: =SUM(E6:E15) -> 1530.612 | F16: =SUM(F6:F15) -> 26938.772 | G16: =SUM(G6:G15) -> 25000 | H16: =IF(D16="","",E16+G16) -> 26530.612 | I16: =SUM(I6:I15) -> 22800 | J16: =ROUND(I16-F16,2) -> -4138.77 | K16: =ROUND(I16-H16,2) -> -3730.61

Sheet Aufträge
B2: Arbeitsaufträge
A5: 1. | B5: Investitionssumme: | D5: 80000 | F5: Kreditauszahlung | I5: 1
B6: Nutzungsdauer: | E6: 10 Jahre | F6: Kreditzins: | I6: 0.05
B7: monatliche Leasingraten: | E7: 875 | F7: Kreditlaufzeit | I7: 10 Jahre
A8: a. | B8: Vergleichen Sie die Kosten bei Leasing und Kreditkauf.
A9: b. | B9: Erklären Sie Entwicklung der Differenzbeträge bei Auszahlungen und Aufwand.
A11: 2. | B11: Eine Investition über 140.000,00 € kann zu 30.000,00 € aus eigenen Mitteln finanziert
B12: werden. Die Nutzungsdauer beträgt 8 Jahre.
B13: Für den Restbetrag müsste ein Darlehen aufgenommen werden. Das Angebot der
B14: Hausbank lautet: 98% Auszahlung, 4,2% Kreditzinszins, Rückzahlung über 6 Jahre.
B15: Alternativ zum Kreditkauf könnte eine Leasingvertrag über 8 Jahre abgeschlossen werden.
B16: Die monatlichen Leasingraten betragen in den ersten 4 Jahren 2.100,00 €. Ab dem fünften
B17: Jahre sinken sie auf 1.500,00 €.
B18: Ermitteln Sie die günstigere Investitionsalternative.
A20: 3. | B20: Ein Unternehmen kann einen Multifunktionsdrucker, der eine Nutzungsdauer von 4 Jahren hat,
B21: bei einem Büromaschinenhändler mit einer Monatsrate von 125,00 € leasen.
B22: Beim Kauf des Gerätes müssten 5.700,00 € gezahlt werden. Dafür müsste ein Kredit
B23: der zu 97% ausgezahlt wird in 4 Jahren getilgt werden. Der Kredit ist mit 4,6% zu verzinsen.
B24: Zu welcher Alternative raten Sie dem Unternehmen?
A26: 4. | B26: Eine Investition über 57.000,00 € und einer Nutzungsdauer von 4 Jahren kann mit 15.000,00 €
B27: aus eigenen Mitteln finanziert werden. Über den Restbetrag muss ein Kredit aufgenommen
B28: werden der zu 96% ausgezahlt wird. Der Kreditzinssatz betägt 5,9%. Die Rückzahlung
B29: wird über die Nutzungsdauer der Anlage verteilt.
B30: Eine Leasinggesellschaft macht ein Angebot mit einer monatlichen Leasingrate von
B31: 1.340,00 € über eine Laufzeit von 4 Jahren.
A32: a. | B32: Welche Investitionsalternative soll gewählt werden, wenn die Liquidität des
B33: Unternehmens bei Investitionsentscheidungen ausschlaggebend ist?
A34: b. | B34: Bei welcher Alternative ist der Aufwand geringer?
A36: 5. | B36: Für eine Investition über 240.000,00 € mit einer Nutzungsdauer von 8 Jahren stehen
B37: die folgenden Finanzierungsalternativen zur Auswahl:
B38: * Finanzierung über ein Darlehen mit einer Auszahlung von 98%.
B39: Das Darlehen ist in 6 Jahren zurückzuzahlen und mit 4,5% zu verzinsen.
B40: * Eine Leasinggesellschaft würde die gleiche Anlage für 3 Jahre aufstellen, und zunächst
B41: eine monatliche Leasingrate von 2.400,00 € in Rechnung stellen.
B42: Nach drei Jahren würde die Anlage durch eine Maschine ersetzt, die zur Zeit noch in
B43: der Entwicklung ist. Allerdings würde die Leasingrat dann auf 3.300,00 € steigen.
A44: a. | B44: Ermitteln Sie die günstigere Investitionsalternative.
A45: b. | B45: Welche Gründe sprechen für das Angebot der Leasinggesellschaft?
A47: 6. | B47: Eine Investition über 480.000,00 € und einer Nutzungsdauer von 10 Jahren kann durch
B48: einen Kreditkauf oder mit einen Leasingvertrag finanziert werden.
B49: Die Leasingraten betragen in den ersten 3 Jahren 5.600,00 €, dann mindern sie sich in
B50: jedem der folgenden Jahre um 200,00 €.
B51: Zum Kauf der Maschine stehen 60.000,00 € eigene Mittel zur Verfügung. Der Restbetrag
B52: muss über ein Darlehen finanziert werden, das zu 97% ausgezahlt wird.
B53: Das Darlehen wird in 10 Jahren getilgt und muss zu 4,8% verzinst werden.
A54: a. | B54: Treffen Sie eine Investitionsentscheidung.
A55: b. | B55: Erklären Sie die Unterschiede bei den Auszahlungs- und Aufwanddifferenzen des ersten
B56: Investitionsjahres im Vergleich zu den Folgejahren.
